fUSD/lending_fUSD_20250630
["ID","MTS","AMOUNT","RATE_DAILY","PERIOD"]
[368719081,1751322633679,-1267.093799,0.00013898,2]
[368719082,1751322633688,-2077.646825,0.00013898,2]
[368719083,1751322633698,-1900.882479,0.00013898,2]
[368719084,1751322633707,-472.145907,0.00013899,2]
[368719085,1751322633717,-1267.093799,0.00013899,2]
[368719086,1751322633727,-2077.646825,0.00013899,2]
[368719087,1751322633737,-1607.92855978,0.00013899,2]
[368719088,1751322633749,-1900.882479,0.00013899,2]
[368719089,1751322633758,-160.52336173,0.00013899,2]
[368719090,1751322633769,-1607.92855972,0.00013899,2]
[368719091,1751322633778,-1607.92855972,0.00013899,2]
[368719092,1751322633790,-1607.92855972,0.00013899,2]
[368719093,1751322633799,-1607.92855972,0.00013899,2]
[368719094,1751322633809,-5983.62638447,0.00013899,2]
[368719095,1751322633820,-1755.8572287,0.00013899,2]
[368719096,1751322633951,-2013.30819884,0.00013899,2]
[368719097,1751322633963,-465.54824257,0.00013899,2]
[368719156,1751322639120,-157.83978028,0.00013884,2]
[368719158,1751322639130,-684.70662474,0.00013889,2]
[368719160,1751322639141,-392.81801178,0.00013889,2]
[368719293,1751322640492,-521.56063959,0.00013799,2]
[368719295,1751322640503,-15.53936041,0.00013889,2]
[368719421,1751322658881,204.99998,0.00012632,2]
[368719422,1751322669788,1398.0,0.0002739,120]
[368719423,1751322673469,1201.0,0.0002739,120]
[368719424,1751322718745,207.0,0.00012632,2]
[368719425,1751322733263,251.0,0.0002739,120]
[368719426,1751322747927,198.0,0.00027397,120]
[368719427,1751322928656,1472.12,0.00012912,2]
[368719428,1751322952191,-833.602104,0.00013134,2]
[368719429,1751322952223,-300.0,0.000132,2]
[368719430,1751322952249,-300.0,0.00013234,2]
[368719431,1751322952274,-164.9653,0.00013267,2]
[368719432,1751322952300,-300.0,0.00013578,2]
[368719433,1751322952328,-211.6425559,0.00013689,2]
[368719434,1751322952356,-1200.0,0.00013788,2]
[368719435,1751322952382,-300.0,0.00013788,2]
[368719436,1751322952408,-272.9218,0.00013789,2]
[368719437,1751322952433,-3954.7628,0.00013789,2]
[368719438,1751322952459,-2090.6854,0.00013789,2]
[368719439,1751322952484,-835.8297818,0.0001379,2]
[368719440,1751322952511,-1000.0,0.0001379,2]
[368719441,1751322952537,-521.56063958,0.0001381,2]
[368719442,1751322952570,-521.56063958,0.00013821,2]
[368719443,1751322952600,-521.56063958,0.00013833,2]
[368719444,1751322952627,-521.56063958,0.00013844,2]
[368719445,1751322952655,-1000.0,0.00013852,2]
[368719446,1751322952682,-521.56063958,0.00013855,2]
[368719447,1751322952709,-521.56063958,0.00013866,2]
[368719448,1751322952736,-521.56063958,0.00013878,2]
[368719449,1751322952762,-960.96472,0.0001388,2]
[368719450,1751322952788,-960.96473,0.0001388,2]
[368719451,1751322952817,-1000.0,0.00013884,2]
[368719452,1751322952845,-614.2047,0.00013884,2]
[368719453,1751322952871,-230.0,0.00013888,2]
[368719454,1751322952899,-2247.93600307,0.00013889,2]
[368719455,1751322952925,-7149.0,0.00013889,2]
[368719456,1751322952951,-521.56063958,0.00013889,2]
[368719457,1751322952976,-960.96473,0.0001389,2]
[368719458,1751322953003,-960.96473,0.0001389,2]
[368719459,1751322953028,-960.96473,0.0001389,2]
[368719460,1751322953055,-207.4,0.00013891,2]
[368719461,1751322953079,-154.789388,0.00013892,2]
[368719462,1751322953104,-157.485263,0.00013892,2]
[368719463,1751322953128,-262.303281,0.00013892,2]
[368719464,1751322953155,-703.941,0.00013892,2]
[368719465,1751322953180,-1154.248236,0.00013892,2]
[368719466,1751322953206,-1056.045822,0.00013892,2]
[368719467,1751322953232,-262.303281,0.00013893,2]
[368719468,1751322953257,-262.303281,0.00013893,2]
[368719469,1751322953283,-703.941,0.00013893,2]
[368719470,1751322953308,-703.941,0.00013893,2]
[368719471,1751322953336,-1154.248236,0.00013893,2]
[368719472,1751322953366,-1154.248236,0.00013893,2]
[368719473,1751322953392,-1056.045822,0.00013893,2]
[368719474,1751322953420,-1023.89695259,0.00013893,2]
[368719475,1751322969542,977.0,0.0002739,120]
[368719476,1751322970699,917.0,0.0002739,120]
[368719477,1751322980934,159.0,0.0002739,120]
[368719478,1751322981738,260.0,0.0002739,120]
[368719479,1751323147171,19201.04,0.00012956,2]
[368719480,1751323235863,1000.0,0.00012941,2]
[368719482,1751323320394,600.0,0.00018395,120]
[368719483,1751323320857,600.0,0.00018395,120]
[368719484,1751323321165,167.03,0.00012893,2]
[368719485,1751323321383,154.85,0.00018395,120]
[368719486,1751323322944,600.0,0.00018395,120]
[368719487,1751323323649,600.0,0.00018395,120]
[368719488,1751323324669,154.85,0.00018395,120]
[368719489,1751323326253,600.0,0.00018395,120]
[368719490,1751323326966,600.0,0.00018395,120]
[368719491,1751323327671,154.85,0.00018395,120]
[368719492,1751323330119,600.0,0.00018395,120]
[368719493,1751323330595,600.0,0.00018395,120]
[368719494,1751323331590,154.85,0.00018395,120]
[368719495,1751323332382,600.0,0.00018395,120]
[368719496,1751323333047,600.0,0.00018395,120]
[368719497,1751323333758,154.85,0.00018395,120]
[368719498,1751323335290,600.0,0.00018395,120]
[368719499,1751323336048,600.0,0.00018395,120]
[368719500,1751323336647,154.85,0.00018395,120]
[368719501,1751323338226,600.0,0.00018395,120]
[368719502,1751323339376,600.0,0.00018395,120]
[368719503,1751323339787,154.85,0.00018395,120]
[368719504,1751323342013,600.0,0.00018395,120]
[368719505,1751323343094,600.0,0.00018395,120]
[368719506,1751323344001,154.85,0.00018395,120]
[368719507,1751323345326,600.0,0.00018395,120]
[368719508,1751323345874,600.0,0.00018395,120]
[368719509,1751323346882,154.85,0.00018395,120]
[368719510,1751323348432,600.0,0.00018336,120]
[368719511,1751323349118,600.0,0.00018336,120]
[368719512,1751323349859,154.85,0.00018336,120]
[368719513,1751323351769,600.0,0.00018336,120]
[368719514,1751323352704,600.0,0.00018336,120]
[368719515,1751323353245,154.85,0.00018336,120]
[368719516,1751323354997,600.0,0.00018336,120]
[368719517,1751323355821,600.0,0.00018336,120]
[368719518,1751323356265,154.85,0.00018336,120]
[368719519,1751323357895,600.0,0.00018336,120]
[368719520,1751323358619,600.0,0.00018336,120]
[368719521,1751323359913,154.85,0.00018336,120]
[368719522,1751323361437,600.0,0.00018336,120]
[368719523,1751323362758,600.0,0.00018336,120]
[368719524,1751323363203,154.85,0.00018336,120]
[368719525,1751323364675,600.0,0.00018336,120]
[368719526,1751323365040,600.0,0.00018336,120]
[368719527,1751323366177,154.85,0.00018336,120]
[368719528,1751323367583,600.0,0.00018336,120]
[368719529,1751323368271,600.0,0.00018336,120]
[368719530,1751323368994,154.85,0.00018336,120]
[368719531,1751323370394,600.0,0.00018336,120]
[368719532,1751323371156,600.0,0.00018336,120]
[368719533,1751323371806,154.85,0.00018336,120]
[368719534,1751323373753,600.0,0.00018336,120]
[368719535,1751323374242,600.0,0.00018336,120]
[368719536,1751323374751,154.85,0.00018336,120]
[368719537,1751323376753,600.0,0.00018336,120]
[368719538,1751323377149,600.0,0.00018336,120]
[368719539,1751323378025,154.85,0.00018336,120]
[368719540,1751323379395,600.0,0.0002,120]
[368719541,1751323380591,600.0,0.0002,120]
[368719542,1751323381176,154.85,0.0002,120]
[368719543,1751323383564,600.0,0.0002,120]
[368719544,1751323384198,600.0,0.0002,120]
[368719545,1751323385283,154.85,0.0002,120]
[368719546,1751323386925,600.0,0.0002,120]
[368719547,1751323387244,600.0,0.0002,120]
[368719548,1751323388083,154.85,0.0002,120]
[368719549,1751323390103,600.0,0.0002,120]
[368719550,1751323390585,600.0,0.0002,120]
[368719551,1751323391296,154.85,0.0002,120]
[368719552,1751323393015,600.0,0.0002,120]
[368719553,1751323394515,600.0,0.0002,120]
[368719554,1751323395199,154.85899109,0.0002,120]
[368719555,1751323402474,500.0,0.00025999,120]
[368719556,1751323488954,700.37,0.0001289,2]
[368719616,1751323768757,291.28,0.00012883,2]
[368719617,1751323772279,500.0,0.00027397,120]
[368719618,1751323784871,200.0,0.00012888,7]
[368719619,1751323805091,500.0,0.00027397,120]
[368719620,1751323829908,550.0,0.00027397,120]
[368719645,1751323831969,-1053.59602726,0.00013568,2]
[368719646,1751323831978,-150.0,0.00013668,2]
[368719647,1751323831988,-531.0,0.00013668,2]
[368719648,1751323831997,-300.0,0.00013669,2]
[368719649,1751323832006,-150.0,0.00013671,2]
[368719650,1751323832016,-300.0,0.00013678,2]
[368719651,1751323832025,-150.0,0.00013694,2]
[368719652,1751323832035,-150.0,0.00013698,2]
[368719654,1751323832044,-423.51,0.00013699,2]
[368719656,1751323832056,-1476.21,0.00013699,2]
[368719658,1751323832065,-150.0,0.00013712,2]
[368719660,1751323832075,-150.0,0.0001372,2]
[368719661,1751323832085,-300.0,0.0001372,2]
[368719663,1751323832095,-207.4,0.00013726,2]
[368719664,1751323832106,-1200.0,0.00013733,2]
[368719665,1751323832115,-1000.0,0.00013734,2]
[368719666,1751323832125,-150.0,0.00013747,2]
[368719667,1751323832135,-150.0,0.00013755,2]
[368719668,1751323832145,-150.0,0.00013768,2]
[368719669,1751323832155,-150.0,0.00013788,2]
[368719670,1751323832164,-150.0,0.00013801,2]
[368719671,1751323832174,-150.0,0.00013803,2]
[368719672,1751323832184,-600.0,0.00013842,2]
[368719673,1751323832193,-300.0,0.00013842,2]
[368719674,1751323832203,-150.0,0.00013843,2]
[368719675,1751323832212,-1000.0,0.00013845,2]
[368719676,1751323832222,-150.0,0.00013886,2]
[368719677,1751323832234,-500.0,0.00013888,2]
[368719678,1751323832243,-835.8297818,0.00013893,2]
[368719679,1751323832253,-2055.651,0.00013899,2]
[368719680,1751323832262,-1000.0,0.00013899,2]
[368719681,1751323832273,-882.10032905,0.00013899,2]
[368719682,1751323832339,-1199.76527095,0.00013899,2]
[368719683,1751323832348,-1175.96855,0.00013899,2]
[368719684,1751323832358,-990.96521525,0.00013899,2]
[368719685,1751323832367,-150.0,0.00013899,2]
[368719686,1751323832376,-990.96521519,0.00013899,2]
[368719687,1751323832386,-990.96521519,0.00013899,2]
[368719688,1751323832396,-990.96521519,0.00013899,2]
[368719689,1751323832405,-990.96521519,0.00013899,2]
[368719690,1751323832415,-990.96521519,0.000139,2]
[368719691,1751323832424,-990.96521519,0.000139,2]
[368719692,1751323832433,-990.96521519,0.000139,2]
[368719693,1751323832443,-990.96521519,0.000139,2]
[368719694,1751323832452,-146.01924228,0.000139,2]
[368719698,1751323837700,-507.5673015,0.000139,2]
[368719699,1751323837710,-1467.96044283,0.000139,2]
[368719829,1751323839809,-1129.4054787,0.000139,2]
[368719830,1751323840002,-2402.63407847,0.000139,2]
[368719831,1751323840013,-187.40180639,0.000139,2]
[368719832,1751323840023,-990.96521519,0.000139,2]
[368719833,1751323840033,-6409.84681472,0.000139,2]
[368719839,1751323841899,594.0,0.00027397,120]
[368719849,1751323846058,-1249.05000001,0.000139,2]
[368719850,1751323846134,623.86531344,0.00027397,120]
[368719851,1751323932893,7508.72,0.00013004,2]
[368719852,1751323932915,2092.13,0.00013004,2]
[368719853,1751323936056,404.64,0.00013086,2]
[368719854,1751323992697,192.1959954,0.00027397,120]
[368719855,1751323993889,321.11827489,0.00027397,120]
[368719856,1751323995824,500.0,0.00025733,120]
[368719857,1751324007678,153.0,0.0002609,120]
[368719858,1751324008212,153.0,0.0002608,120]
[368719859,1751324008738,153.0,0.0002607,120]
[368719860,1751324009443,250.0,0.00012933,2]
[368719861,1751324030872,169.83,0.00012919,2]
[368719862,1751324048395,971.83,0.00012897,2]
[368719863,1751324331784,1877.0,0.00012821,2]
[368719864,1751324399082,542.0,0.00012895,2]
[368719865,1751324454370,1000.0,0.00012807,2]
[368719866,1751324473041,692.57,0.00013,2]
[368719867,1751324473075,2498.645768,0.00013,2]
[368719869,1751324595197,500.0,0.00026096,120]
[368719870,1751324812079,297.04,0.00012804,2]
[368719904,1751324955690,1204.314232,0.00012796,2]
[368719905,1751324955718,7920.505768,0.00012796,2]
[368720679,1751325031795,-169.93,0.00013196,2]
[368720680,1751325031805,-300.0,0.00013398,2]
[368720681,1751325031814,-119.84026896,0.000136,2]
[368720682,1751325031825,-1637.15973104,0.000136,2]
[368720683,1751325031835,-300.0,0.00013697,2]
[368720684,1751325031844,-300.0,0.00013697,2]
[368720685,1751325031853,-1200.0,0.00013697,2]
[368720686,1751325031862,-300.0,0.00013698,2]
[368720687,1751325031872,-207.4,0.00013698,2]
[368720688,1751325031881,-372.83258365,0.00013698,2]
[368720689,1751325031892,-194.56610483,0.00013698,2]
[368720690,1751325031901,-500.0,0.00013698,2]
[368720691,1751325031911,-5.25937846,0.00013698,2]
[368720692,1751325031922,-145.74062154,0.00013698,2]
[368720693,1751325031932,-488.06,0.00013699,2]
[368720694,1751325031942,-438.76335919,0.00013699,2]
[368720695,1751325032082,-1003.0,0.00013699,2]
[368720697,1751325032094,-373.26336855,0.00013699,2]
[368720699,1751325032105,-503.24327226,0.00013699,2]
[368720701,1751325032115,-150.0,0.00013702,2]
[368720703,1751325032126,-150.0,0.00013702,2]
[368720705,1751325032135,-300.0,0.00013702,2]
[368720707,1751325032144,-179.557886,0.00013719,2]
[368720709,1751325032153,-331.8530915,0.00013732,2]
[368720711,1751325032165,-503.9766903,0.00013732,2]
[368720713,1751325032174,-39.19337226,0.00013736,2]
[368720716,1751325032186,-960.80662774,0.00013736,2]
[368720718,1751325032196,-813.0722,0.00013749,2]
[368720719,1751325032205,-160.16078,0.0001376,2]
[368720722,1751325032215,-842.4317,0.00013778,2]
[368720724,1751325032225,-2651.07087307,0.00013779,2]
[368720726,1751325032234,-228.6512,0.00013789,2]
[368720728,1751325032244,-2651.07087302,0.00013792,2]
[368720729,1751325032253,-150.0,0.00013799,2]
[368720731,1751325032262,-29.85077997,0.000138,2]
[368720733,1751325032275,-120.14922003,0.000138,2]
[368720734,1751325032285,-500.0,0.000138,2]
[368720735,1751325032295,-150.0,0.000138,2]
[368720736,1751325032304,-500.0,0.000138,2]
[368720737,1751325032314,-299.83452615,0.000138,2]
[368720738,1751325032323,-150.0,0.000138,2]
[368720739,1751325032333,-500.0,0.000138,2]
[368720740,1751325032343,-150.0,0.000138,2]
[368720741,1751325032353,-154.14629039,0.000138,2]
[368720742,1751325032362,-150.0,0.000138,2]
[368720743,1751325032373,-1347.0,0.000138,2]
[368720744,1751325032382,-150.0,0.000138,2]
[368720745,1751325032392,-150.0,0.000138,2]
[368720746,1751325032401,-150.0,0.000138,2]
[368720747,1751325032410,-150.0,0.000138,2]
[368720748,1751325032420,-423.0,0.000138,2]
[368720749,1751325032430,-500.0,0.000138,2]
[368720750,1751325032439,-500.0,0.000138,2]
[368720751,1751325032449,-4219.0,0.000138,2]
[368720752,1751325032458,-626.0,0.000138,2]
[368720753,1751325032469,-500.0,0.000138,2]
[368720754,1751325032479,-150.0,0.000138,2]
[368720755,1751325032488,-500.0,0.000138,2]
[368720756,1751325032497,-500.0,0.000138,2]
[368720757,1751325032507,-500.0,0.000138,2]
[368720758,1751325032516,-500.0,0.000138,2]
[368720759,1751325032526,-3256.0,0.000138,2]
[368720760,1751325032535,-500.0,0.000138,2]
[368720761,1751325032545,-500.0,0.000138,2]
[368720762,1751325032555,-150.0,0.000138,2]
[368720763,1751325032564,-324.26067276,0.000138,2]
[368720764,1751325032577,-175.73932724,0.000138,2]
[368720765,1751325032586,-150.0,0.000138,2]
[368720766,1751325032599,-1085.43710809,0.000138,2]
[368720767,1751325032651,-274.56289191,0.000138,2]
[368720768,1751325032661,-500.0,0.000138,2]
[368720769,1751325032672,-150.78918594,0.000138,2]
[368720770,1751325032683,-150.0,0.00013804,2]
[368720771,1751325032692,-150.0,0.00013804,2]
[368720772,1751325032701,-2651.07087302,0.00013806,2]
[368720773,1751325032711,-150.0,0.00013808,2]
[368720774,1751325032720,-442.33948166,0.00013817,2]
[368720775,1751325032730,-150.0,0.00013818,2]
[368720776,1751325032739,-2651.07087302,0.00013819,2]
[368720777,1751325032748,-2991.81319223,0.00013822,2]
[368720778,1751325032759,-442.33948166,0.00013824,2]
[368720779,1751325032768,-442.33948166,0.0001383,2]
[368720780,1751325032777,-2651.07087302,0.00013833,2]
[368720781,1751325032787,-151.0,0.00013833,2]
[368720782,1751325032796,-151.0,0.00013833,2]
[368720783,1751325032806,-151.0,0.00013833,2]
[368720784,1751325032815,-156.324627,0.00013833,2]
[368720785,1751325032825,-151.885998,0.00013833,2]
[368720786,1751325032834,-151.0,0.00013833,2]
[368720787,1751325032843,-151.0,0.00013833,2]
[368720788,1751325032852,-151.0,0.00013833,2]
[368720789,1751325032862,-151.0,0.00013833,2]
[368720790,1751325032871,-5296.65193606,0.00013833,2]
[368720791,1751325032880,-1052.9,0.00013834,2]
[368720792,1751325032889,-442.33948166,0.00013836,2]
[368720793,1751325032899,-442.33948166,0.00013843,2]
[368720794,1751325032909,-1000.0,0.00013844,2]
[368720795,1751325032926,-151.0,0.00013844,2]
[368720796,1751325032940,-151.0,0.00013844,2]
[368720797,1751325032950,-151.0,0.00013844,2]
[368720798,1751325032959,-151.0,0.00013844,2]
[368720799,1751325032968,-151.0,0.00013844,2]
[368720800,1751325032978,-188.866234,0.00013844,2]
[368720801,1751325032987,-151.0,0.00013844,2]
[368720802,1751325032997,-151.0,0.00013844,2]
[368720803,1751325033006,-151.0,0.00013844,2]
[368720804,1751325033016,-151.0,0.00013844,2]
[368720805,1751325033026,-151.0,0.00013844,2]
[368720806,1751325033035,-151.0,0.00013844,2]
[368720807,1751325033045,-270.732192,0.00013844,2]
[368720808,1751325033055,-151.0,0.00013844,2]
[368720809,1751325033065,-154.045198,0.00013844,2]
[368720810,1751325033075,-151.0,0.00013844,2]
[368720811,1751325033085,-151.0,0.00013844,2]
[368720812,1751325033095,-151.0,0.00013844,2]
[368720813,1751325033104,-153.498088,0.00013844,2]
[368720814,1751325033114,-151.0,0.00013844,2]
[368720815,1751325033124,-151.0,0.00013844,2]
[368720816,1751325033134,-151.0,0.00013844,2]
[368720817,1751325033144,-169.375602,0.00013844,2]
[368720818,1751325033154,-151.0,0.00013844,2]
[368720819,1751325033164,-151.0,0.00013844,2]
[368720820,1751325033174,-255.051404,0.00013844,2]
[368720821,1751325033184,-151.0,0.00013844,2]
[368720822,1751325033195,-239.58533,0.00013844,2]
[368720823,1751325033205,-231.760743,0.00013844,2]
[368720824,1751325033215,-5296.65193606,0.00013844,2]
[368720825,1751325033225,-151.0,0.00013846,2]
[368720826,1751325033234,-151.0,0.00013846,2]
[368720827,1751325033244,-151.0,0.00013846,2]
[368720828,1751325033254,-151.0,0.00013846,2]
[368720829,1751325033264,-151.0,0.00013846,2]
[368720830,1751325033274,-151.0,0.00013846,2]
[368720831,1751325033284,-151.0,0.00013846,2]
[368720832,1751325033294,-151.0,0.00013846,2]
[368720833,1751325033304,-2651.07087302,0.00013846,2]
[368720834,1751325033314,-151.0,0.00013848,2]
[368720835,1751325033323,-155.988694,0.00013848,2]
[368720836,1751325033333,-151.0,0.00013848,2]
[368720837,1751325033343,-151.0,0.00013848,2]
[368720838,1751325033354,-151.739475,0.00013848,2]
[368720839,1751325033370,-151.0,0.00013848,2]
[368720840,1751325033381,-151.0,0.00013848,2]
[368720841,1751325033391,-151.0,0.00013848,2]
[368720842,1751325033402,-151.0,0.00013848,2]
[368720843,1751325033412,-1539.0,0.00013848,2]
[368720844,1751325033422,-442.33948166,0.00013849,2]
[368720845,1751325033433,-151.0,0.00013855,2]
[368720846,1751325033444,-442.33948166,0.00013855,2]
[368720847,1751325033454,-5296.65193606,0.00013856,2]
[368720848,1751325033464,-151.0,0.00013856,2]
[368720849,1751325033474,-151.0,0.00013856,2]
[368720850,1751325033484,-220.23604,0.00013856,2]
[368720851,1751325033495,-2651.07087302,0.0001386,2]
[368720852,1751325033504,-442.33948166,0.00013862,2]
[368720853,1751325033514,-5296.65193606,0.00013867,2]
[368720854,1751325033524,-151.0,0.00013867,2]
[368720855,1751325033534,-151.0,0.00013867,2]
[368720856,1751325033544,-155.930104,0.00013867,2]
[368720857,1751325033554,-151.0,0.00013867,2]
[368720858,1751325033564,-151.0,0.00013867,2]
[368720859,1751325033573,-151.0,0.00013867,2]
[368720860,1751325033583,-151.0,0.00013867,2]
[368720861,1751325033595,-151.0,0.00013867,2]
[368720862,1751325033605,-151.0,0.00013867,2]
[368720863,1751325033615,-151.0,0.00013867,2]
[368720864,1751325033625,-151.0,0.00013867,2]
[368720865,1751325033635,-151.0,0.00013867,2]
[368720866,1751325033644,-151.0,0.00013867,2]
[368720867,1751325033654,-442.33948166,0.00013868,2]
[368720868,1751325033664,-1052.9,0.00013869,2]
[368720869,1751325033675,-150.0,0.00013872,2]
[368720870,1751325033686,-2651.07087302,0.00013873,2]
[368720871,1751325033695,-442.33948166,0.00013875,2]
[368720872,1751325033705,-151.0,0.00013876,2]
[368720873,1751325033716,-151.0,0.00013876,2]
[368720874,1751325033726,-1398.89,0.00013877,2]
[368720875,1751325033736,-150.0,0.00013877,2]
[368720876,1751325033746,-5296.65193606,0.00013878,2]
[368720877,1751325033756,-151.0,0.00013878,2]
[368720878,1751325033766,-151.0,0.00013878,2]
[368720879,1751325033776,-151.0,0.00013878,2]
[368720880,1751325033785,-151.0,0.00013878,2]
[368720881,1751325033796,-151.0,0.00013878,2]
[368720882,1751325033806,-151.0,0.00013878,2]
[368720883,1751325033822,-151.0,0.00013878,2]
[368720884,1751325033833,-151.0,0.00013878,2]
[368720885,1751325033843,-227.508068,0.00013878,2]
[368720886,1751325033853,-2009.0,0.00013879,2]
[368720887,1751325033863,-930.0,0.00013879,2]
[368720888,1751325033874,-592.0,0.00013879,2]
[368720889,1751325033883,-560.0,0.00013879,2]
[368720890,1751325033893,-1679.0,0.00013879,2]
[368720891,1751325033903,-1281.0,0.00013879,2]
[368720892,1751325033912,-1163.0,0.00013879,2]
[368720893,1751325033922,-7149.0,0.00013879,2]
[368720894,1751325033932,-156.0,0.00013879,2]
[368720895,1751325033942,-4105.0,0.00013879,2]
[368720896,1751325033952,-151.0,0.00013879,2]
[368720897,1751325033962,-151.0,0.00013879,2]
[368720898,1751325033972,-442.33948166,0.00013881,2]
[368720899,1751325033982,-2651.07087302,0.00013887,2]
[368720900,1751325033992,-442.33948166,0.00013887,2]
[368720901,1751325034002,-500.0,0.00013888,2]
[368720902,1751325034013,-271.01012076,0.00013888,2]
[368720903,1751325034023,-5296.65193606,0.00013889,2]
[368720904,1751325034033,-1052.9,0.00013889,2]
[368720905,1751325034044,-151.0,0.00013889,2]
[368720906,1751325034054,-151.0,0.00013889,2]
[368720907,1751325034064,-151.0,0.00013889,2]
[368720908,1751325034074,-151.0,0.00013889,2]
[368720909,1751325034085,-151.0,0.00013889,2]
[368720910,1751325034549,-151.0,0.00013889,2]
[368720911,1751325034559,-229.031458,0.00013889,2]
[368720912,1751325034569,-271.807394,0.00013889,2]
[368720913,1751325034578,-151.0,0.00013889,2]
[368720914,1751325034589,-151.0,0.00013889,2]
[368720915,1751325034601,-1052.9,0.0001389,2]
[368720916,1751325034611,-1052.9,0.0001389,2]
[368720917,1751325034620,-151.0,0.00013892,2]
[368720918,1751325034630,-283.5774,0.00013892,2]
[368720919,1751325034640,-586.6175,0.00013892,2]
[368720920,1751325034650,-961.87353,0.00013892,2]
[368720921,1751325034659,-881.824233,0.00013892,2]
[368720922,1751325034670,-154.789388,0.00013892,2]
[368720923,1751325034680,-157.485263,0.00013892,2]
[368720924,1751325034691,-218.586068,0.00013892,2]
[368720925,1751325034701,-151.0,0.00013892,2]
[368720926,1751325034711,-586.6175,0.00013893,2]
[368720927,1751325034720,-586.6175,0.00013893,2]
[368720928,1751325034729,-961.87353,0.00013893,2]
[368720929,1751325034739,-961.87353,0.00013893,2]
[368720930,1751325034748,-881.824233,0.00013893,2]
[368720931,1751325034757,-881.824233,0.00013893,2]
[368720932,1751325034767,-218.586068,0.00013893,2]
[368720933,1751325034776,-218.586068,0.00013893,2]
[368720934,1751325034787,-442.33948166,0.00013894,2]
[368720935,1751325034796,-586.6175,0.00013894,2]
[368720936,1751325034805,-586.6175,0.00013894,2]
[368720937,1751325034814,-961.87353,0.00013894,2]
[368720938,1751325034836,-961.87353,0.00013894,2]
[368720939,1751325034846,-881.824233,0.00013894,2]
[368720940,1751325034856,-881.824233,0.00013894,2]
[368720941,1751325034866,-154.789388,0.00013894,2]
[368720942,1751325034876,-218.586068,0.00013894,2]
[368720943,1751325034887,-218.586068,0.00013894,2]
[368720944,1751325034897,-151.0,0.00013894,2]
[368720945,1751325034906,-151.0,0.00013895,2]
[368720946,1751325034916,-151.0,0.00013895,2]
[368720947,1751325034926,-151.0,0.00013895,2]
[368720948,1751325034936,-151.0,0.00013895,2]
[368720949,1751325034946,-151.0,0.00013895,2]
[368720950,1751325034956,-151.0,0.00013895,2]
[368720951,1751325034966,-151.0,0.00013895,2]
[368720952,1751325034976,-151.0,0.00013895,2]
[368720953,1751325034986,-586.6175,0.00013895,2]
[368720954,1751325034997,-961.87353,0.00013895,2]
[368720955,1751325035007,-881.824233,0.00013895,2]
[368720956,1751325035016,-218.586068,0.00013895,2]
[368720957,1751325035026,-151.0,0.00013895,2]
[368720958,1751325035037,-151.0,0.00013898,2]
[368720959,1751325035048,-316.139491,0.00013898,2]